bitfinex/quotes_SOLUSD_20251204
["timestamp","ask_amount","ask_price","bid_price","bid_amount"]
[1764874593159,15.01389343,140.57,140.5,7.11743772]
[1764874593449,2.95182347,140.56,140.5,27.86285549]
[1764874593637,2.95182347,140.56,140.51,0.67]
[1764874594032,128.38289258,140.59,140.51,0.67]
[1764874594235,2.95182347,140.57,140.51,3.62182347]
[1764874594837,2.95182347,140.56,140.52,0.67]
[1764874595235,2.95182347,140.56,140.53,7.1159183]
[1764874595436,2.95182347,140.57,140.53,7.1159183]
[1764874595638,128.38289258,140.59,140.54,0.67]
[1764874595639,117.71305105,140.59,140.54,0.67]
[1764874595839,2.95182347,140.59,140.54,0.67]
[1764874596148,2.95182347,140.56,140.54,0.67]
[1764874596347,24.8934841,140.6,140.54,0.67]
[1764874596644,2.95182347,140.56,140.54,0.67]
[1764874597227,2.95182347,140.57,140.54,7.78522176]
[1764874597849,7.11348334,140.58,140.55,0.67]
[1764874598048,2.95182347,140.57,140.55,0.67]
[1764874598428,5.90364694,140.56,140.51,0.67]
[1764874598747,5.90364694,140.56,140.49,0.67]
[1764874598748,2.95182347,140.52,140.49,0.67]
[1764874598935,2.95182347,140.51,140.48,7.1182442]
[1764874599135,2.95182347,140.5,140.48,7.1182442]
[1764874599337,2.95182347,140.5,140.49,0.67]
[1764874599536,2.95182347,140.51,140.49,0.67]
[1764874603451,2.95182347,140.5,140.47,7.76885747]
[1764874603647,2.95182347,140.49,140.48,0.65]
[1764874604237,2.95182347,140.49,140.46,0.65]
[1764874604538,2.95182347,140.48,140.46,0.65]
[1764874604745,2.95182347,140.47,140.45,0.65]
[1764874605050,7.88,140.51,140.46,7.76940034]
[1764874605247,10.83182347,140.51,140.46,7.76940034]
[1764874605441,10.83182347,140.51,140.47,0.65]
[1764874606255,10.83182347,140.51,140.48,7.11845102]
[1764874606740,2.95182347,140.52,140.49,0.65]
[1764874607158,2.95182347,140.51,140.49,0.65]
[1764874607940,2.95182347,140.52,140.49,0.65]
[1764874608239,7.11597906,140.53,140.49,25.5624531]
[1764874608240,2.95182347,140.53,140.49,25.5624531]
[1764874608639,2.95182347,140.53,140.5,0.65]
[1764874609245,7.88,140.54,140.5,0.65]
[1764874609494,2.95182347,140.53,140.5,0.65]
[1764874609663,2.95182347,140.52,140.5,0.65]
[1764874610046,2.95182347,140.51,140.48,7.76830121]
[1764874610254,2.95182347,140.5,140.48,7.76830121]
[1764874610450,7.1159183,140.53,140.47,7.11879348]
[1764874610451,2.95182347,140.49,140.47,7.11879348]
[1764874610647,2.95182347,140.49,140.47,7.76879348]
[1764874610846,24.90571407,140.53,140.48,0.65]
[1764874610847,2.95182347,140.5,140.48,0.65]
[1764874611042,7.1159183,140.53,140.48,7.76826865]
[1764874611262,2.95182347,140.52,140.48,7.76826865]
[1764874611465,2.95182347,140.52,140.49,0.65]
[1764874611666,14.99563729,140.54,140.49,0.65]
[1764874611964,2.95182347,140.53,140.49,0.65]
[1764874612866,2.95182347,140.53,140.5,7.11743772]
[1764874613050,2.95182347,140.52,140.5,7.11743772]
[1764874613363,2.95182347,140.52,140.51,0.65]
[1764874614568,14.99563729,140.54,140.51,0.65]
[1764874615057,14.99563729,140.54,140.51,7.76691347]
[1764874615256,14.99563729,140.54,140.51,0.65]
[1764874615671,2.95182347,140.53,140.51,0.65]
[1764874615972,102.7,140.55,140.52,7.1164247]
[1764874616148,105.65182347,140.55,140.52,7.1164247]
[1764874616342,105.65182347,140.55,140.53,0.65]
[1764874616684,102.7,140.55,140.53,0.65]
[1764874617263,2.95182347,140.56,140.53,0.65]
[1764874617450,2.95182347,140.58,140.53,0.65]
[1764874617771,2.95182347,140.58,140.53,11.48182347]
[1764874618064,10.83182347,140.59,140.54,0.65]
[1764874618254,10.83182347,140.59,140.55,7.11490572]
[1764874618845,17.94476923,140.59,140.56,0.65]
[1764874619070,2.95182347,140.58,140.56,0.65]
[1764874619771,17.94473829,140.59,140.56,0.65]
[1764874620850,2.95182347,140.58,140.54,0.65]
[1764874621069,2.95182347,140.57,140.54,0.65]
[1764874621273,2.95182347,140.56,140.52,7.76619267]
[1764874621471,2.95182347,140.54,140.52,0.65]
[1764874621651,2.95182347,140.54,140.5,0.65]
[1764874621854,2.95182347,140.52,140.49,7.11787254]
[1764874622052,2.95182347,140.53,140.5,7.1174362]
[1764874622256,7.11560158,140.54,140.51,0.65]
[1764874622566,7.11509132,140.55,140.51,7.76673112]
[1764874622743,2.95182347,140.54,140.51,7.76673112]
[1764874622949,7.11509132,140.55,140.51,7.11673112]
[1764874623148,10.83182347,140.56,140.52,0.65]
[1764874623351,7.88,140.56,140.52,3.60182347]
[1764874623560,10.06605896,140.57,140.52,3.60182347]
[1764874623759,2.95182347,140.57,140.53,0.65]
[1764874624078,2.95182347,140.58,140.53,3.60182347]
[1764874624278,2.95182347,140.58,140.54,7.11541198]
[1764874624571,2.95182347,140.58,140.54,7.76541198]
[1764874624772,2.95182347,140.58,140.55,0.65]
[1764874625763,17.94488444,140.59,140.55,7.76470417]
[1764874625956,10.83182347,140.59,140.55,7.76470417]
[1764874626151,10.83182347,140.59,140.56,0.65]
[1764874627553,7.11202269,140.61,140.56,0.65]
[1764874627761,2.95182347,140.6,140.56,0.65]
[1764874627956,10.06424052,140.6,140.56,7.76405151]
[1764874628178,10.06424052,140.6,140.57,0.65]
[1764874629058,10.06424052,140.6,140.57,7.76383747]
[1764874629473,2.95182347,140.6,140.57,7.76383747]
[1764874629671,17.94349391,140.62,140.58,0.65]
[1764874630194,2.95182347,140.61,140.58,0.65]
[1764874630574,2.95182347,140.59,140.56,7.76424152]
[1764874630963,2.95182347,140.59,140.57,0.65]
[1764874631876,2.95182347,140.59,140.57,7.76388217]
[1764874632585,2.95182347,140.59,140.57,0.65]
[1764874634086,2.95182347,140.58,140.55,7.78469253]
[1764874634377,7.11307652,140.59,140.56,7.78416771]
[1764874634378,2.95182347,140.59,140.56,7.78416771]
[1764874634754,2.95182347,140.59,140.56,7.11416771]
[1764874634960,2.95182347,140.59,140.56,7.78416771]
[1764874635377,2.95182347,140.59,140.56,0.67]
[1764874635589,2.95182347,140.59,140.57,0.67]
[1764874636387,10.0643809,140.6,140.57,0.67]
[1764874636860,109.81226678,140.61,140.57,0.67]
[1764874637058,112.76409025,140.61,140.57,0.67]
[1764874637488,112.76409025,140.61,140.57,7.78363685]
[1764874637893,10.83182347,140.62,140.58,0.67]
[1764874638063,7.88,140.62,140.58,0.67]
[1764874638261,17.94319574,140.62,140.58,0.67]
[1764874638461,10.83182347,140.62,140.58,0.67]
[1764874638775,17.94321919,140.62,140.58,0.67]
[1764874639678,17.94321919,140.62,140.58,7.78290459]
[1764874639867,17.94321919,140.62,140.59,0.67]
[1764874640267,2.95182347,140.61,140.59,0.67]
[1764874640689,2.95182347,140.6,140.59,0.67]
[1764874641177,14.99139572,140.62,140.59,0.67]
[1764874641376,2.95182347,140.61,140.59,0.67]
[1764874642492,2.95182347,140.62,140.59,7.78276254]
[1764874642670,7.11105706,140.63,140.59,7.78276254]
[1764874642985,7.11105706,140.63,140.6,0.67]
[1764874642986,2.95182347,140.62,140.6,0.67]
[1764874643280,2.95182347,140.62,140.59,0.67]
[1764874644674,2.95182347,140.62,140.59,7.78287038]
[1764874644985,7.11105706,140.63,140.6,0.67]
[1764874645177,2.95182347,140.62,140.6,0.67]
[1764874646487,10.06323637,140.62,140.6,0.67]
[1764874647881,2.95182347,140.61,140.58,0.67]
[1764874648078,2.95182347,140.6,140.57,7.78389343]
[1764874648276,2.95182347,140.59,140.57,7.78389343]
[1764874648484,2.95182347,140.6,140.57,7.11389343]
[1764874648674,2.95182347,140.6,140.58,0.67]
[1764874649372,2.95182347,140.6,140.57,7.78389343]
[1764874649573,2.95182347,140.6,140.57,7.11389343]
[1764874649774,2.95182347,140.6,140.58,0.67]
[1764874651074,2.95182347,140.6,140.58,7.78330421]
[1764874651283,10.06416947,140.61,140.58,7.78330421]
[1764874651480,2.95182347,140.61,140.59,0.67]
[1764874651671,2.95182347,140.62,140.59,0.67]
[1764874651884,10.06291884,140.63,140.59,0.67]
[1764874652069,2.95182347,140.63,140.59,0.67]
[1764874652394,4.60321111,140.63,140.59,0.67]
[1764874653089,4.60321111,140.6,140.56,0.67]
[1764874653395,4.60321111,140.57,140.55,7.11461365]
[1764874653575,4.60321111,140.56,140.53,0.67]
[1764874653781,4.60321111,140.55,140.53,7.11570462]
[1764874653982,4.60321111,140.55,140.53,7.78570462]
[1764874654175,4.60321111,140.55,140.54,0.67]
[1764874654381,24.89508499,140.59,140.54,0.67]
[1764874654583,4.60321111,140.56,140.53,7.78570462]
[1764874654982,4.60321111,140.56,140.54,0.67]
[1764874655287,4.60321111,140.56,140.54,7.78541125]
[1764874655671,4.60321111,140.57,140.55,0.67]
[1764874657598,11.71720417,140.57,140.55,0.67]
[1764874658399,4.60321111,140.56,140.55,0.67]
[1764874660795,4.60321111,140.57,140.55,7.78490572]
[1764874661277,4.60321111,140.57,140.55,7.11490572]
[1764874661476,4.60321111,140.57,140.56,0.67]
[1764874664502,7.88,140.6,140.56,7.78439487]
[1764874664690,4.60321111,140.59,140.56,7.78439487]
[1764874664880,4.60321111,140.59,140.57,0.69]
[1764874665076,4.60321111,140.58,140.57,0.69]
[1764874667694,4.60321111,140.58,140.55,7.11457727]
[1764874668002,4.60321111,140.58,140.55,0.69]
[1764874668003,4.60321111,140.57,140.55,0.69]
[1764874668178,4.60321111,140.57,140.54,7.11524364]
[1764874668179,4.60321111,140.57,140.56,0.69]
[1764874670986,4.60321111,140.57,140.54,7.11524364]
[1764874671181,4.60321111,140.56,140.55,0.69]
[1764874672105,4.60321111,140.56,140.54,0.69]
[1764874672780,4.60321111,140.55,140.52,0.69]
[1764874672986,4.60321111,140.54,140.53,0.69]
[1764874677213,4.60321111,140.55,140.53,0.69]
[1764874677796,4.60321111,140.54,140.53,0.69]
[1764874678814,4.60321111,140.55,140.53,0.69]
[1764874680693,4.60321111,140.56,140.53,7.80582397]
[1764874681101,4.60321111,140.56,140.54,0.69]
[1764874682216,4.60321111,140.56,140.54,7.8053317]
[1764874682598,4.60321111,140.56,140.55,0.69]
[1764874683200,4.60321111,140.57,140.55,0.69]
[1764874685097,4.60321111,140.56,140.55,0.69]
[1764874689020,4.60321111,140.57,140.55,0.69]
[1764874691619,4.60321111,140.56,140.55,0.69]
[1764874692001,4.60321111,140.56,140.53,7.11571071]
[1764874692200,4.60321111,140.55,140.53,0.69]
[1764874692917,4.60321111,140.56,140.53,7.80585593]
[1764874693417,4.60321111,140.56,140.54,0.7]
[1764874693418,11.71774203,140.56,140.54,0.7]
[1764874693723,4.60321111,140.55,140.54,0.7]
[1764874694126,7.11412047,140.57,140.54,0.7]
[1764874694323,4.60321111,140.56,140.54,0.7]
[1764874694829,11.71733158,140.57,140.54,0.7]
[1764874695127,4.60321111,140.56,140.54,0.7]
[1764874697037,114.41683602,140.58,140.54,7.81536405]
[1764874697206,4.60321111,140.57,140.54,7.81536405]
[1764874697397,4.60321111,140.57,140.55,0.7]
[1764874699425,11.7171821,140.57,140.55,0.7]
[1764874699730,4.60321111,140.56,140.54,0.7]
[1764874699907,4.60321111,140.55,140.54,0.7]
[1764874701228,4.60321111,140.56,140.54,0.7]
[1764874701443,4.60321111,140.56,140.5,25.11880892]
[1764874701444,4.60321111,140.55,140.5,25.11880892]
[1764874701623,4.60321111,140.52,140.51,0.7]
[1764874701820,4.60321111,140.52,140.47,25.97850596]
[1764874702020,7.88,140.55,140.49,0.7]
[1764874702021,4.60321111,140.5,140.49,0.7]
[1764874703023,4.60321111,140.51,140.49,0.7]
[1764874703417,14.99681729,140.52,140.49,0.7]
[1764874703418,4.60321111,140.5,140.49,0.7]
[1764874703939,4.60321111,140.51,140.49,0.7]
[1764874706327,4.60321111,140.51,140.49,7.81781348]
[1764874706529,7.11609246,140.53,140.49,7.81781348]
[1764874706712,7.11609246,140.53,140.5,0.7]
[1764874706917,4.60321111,140.52,140.5,0.7]
[1764874708620,4.60321111,140.51,140.5,0.7]
[1764874710437,4.60321111,140.51,140.48,14.99833225]
[1764874710640,7.11646796,140.52,140.5,0.7]
[1764874711644,4.60321111,140.51,140.48,0.7]
[1764874711936,4.60321111,140.49,140.48,0.7]
[1764874712235,4.60321111,140.49,140.46,16.308864]
[1764874712418,4.60321111,140.47,140.44,0.7]
[1764874712616,4.60321111,140.46,140.44,7.12007224]
[1764874712829,4.60321111,140.47,140.45,0.7]
[1764874713240,4.60321111,140.49,140.45,0.7]
[1764874713536,4.60321111,140.49,140.45,8.58]
[1764874713735,12.48321111,140.51,140.47,7.11895778]
[1764874713939,4.60321111,140.51,140.47,7.11895778]
[1764874714149,4.60321111,140.52,140.48,0.7]
[1764874714524,2.95065484,140.53,140.48,8.58]
[1764874714744,111.50994492,140.59,140.48,8.58]
[1764874714745,5.87213256,140.63,140.5,2.95065484]
[1764874715037,40.65008456,140.62,140.53,16.308864]
[1764874715214,2.95065484,140.57,140.53,16.308864]
[1764874715419,4.68341913,140.61,140.52,8.58]
[1764874715420,2.95065484,140.54,140.52,8.58]
[1764874716033,2.95065484,140.54,140.53,0.7]
[1764874716251,2.95065484,140.54,140.52,7.88]
[1764874716547,2.95065484,140.55,140.52,8.58]
[1764874717743,2.95065484,140.55,140.52,0.7]
[1764874718316,2.95065484,140.55,140.52,7.81635062]
[1764874718642,10.06545005,140.56,140.52,7.81635062]
[1764874718944,10.06545005,140.56,140.53,0.7]
[1764874719322,10.06545005,140.56,140.51,7.11674033]
[1764874719550,10.06545005,140.56,140.52,0.7]
[1764874719935,10.06545005,140.56,140.52,7.81640679]
[1764874720447,10.06545005,140.56,140.53,0.7]
[1764874722548,2.95065484,140.56,140.53,7.81581511]
[1764874722856,17.94374373,140.59,140.53,18.64646995]
[1764874723027,17.94374373,140.59,140.54,0.68]
[1764874723443,2.95065484,140.58,140.54,0.68]
[1764874723627,2.95065484,140.58,140.55,7.11490572]
[1764874723823,2.95065484,140.6,140.55,7.11490572]
[1764874724066,17.94204043,140.62,140.56,11.51065484]
[1764874724420,17.94204043,140.62,140.57,0.68]
[1764874724622,17.94204043,140.62,140.57,3.63065484]
[1764874725162,17.94204043,140.62,140.58,0.68]
[1764874725456,2.95065484,140.61,140.58,0.68]
[1764874725848,14.99138559,140.62,140.58,7.79323086]
[1764874726172,17.94204043,140.62,140.58,7.79323086]
[1764874726349,17.94204043,140.62,140.59,0.68]
[1764874726760,10.83065484,140.62,140.59,0.68]
[1764874727071,0.2,140.64,140.59,8.56]
[1764874727072,10.26111337,140.64,140.59,8.56]
[1764874727448,10.26111337,140.64,140.6,0.68]
[1764874728175,2.95065484,140.63,140.6,0.68]
[1764874728355,2.95065484,140.63,140.6,7.79235947]
[1764874728761,2.95065484,140.63,140.61,0.68]
[1764874730079,10.26111337,140.64,140.61,0.68]
[1764874731158,2.95065484,140.63,140.58,7.11308765]
[1764874731363,2.95065484,140.62,140.59,0.68]
[1764874731571,10.06204741,140.62,140.59,0.68]
[1764874733079,10.06172006,140.63,140.59,7.79284309]
[1764874733251,2.95065484,140.62,140.59,0.68]
[1764874733445,2.95065484,140.62,140.6,0.68]
[1764874734765,10.06207109,140.62,140.6,0.68]
[1764874735850,10.06169943,140.63,140.6,0.68]
[1764874737754,0.2,140.64,140.6,7.79200694]
[1764874738159,3.15065484,140.64,140.61,0.68]
[1764874738359,2.95065484,140.63,140.61,0.68]
[1764874739476,2.95065484,140.62,140.61,0.68]
[1764874740674,10.06168709,140.63,140.61,0.68]
[1764874741177,2.95065484,140.63,140.61,0.68]
[1764874741472,3.15065484,140.64,140.61,7.79186748]
[1764874741674,0.2,140.64,140.61,7.79186748]
[1764874741866,0.2,140.64,140.62,0.68]
[1764874742872,3.15065484,140.64,140.62,0.68]
[1764874743878,0.2,140.64,140.62,7.79127999]
[1764874744061,0.2,140.67,140.64,8.80994492]
[1764874744377,0.2,140.71,140.67,8.80994492]
[1764874744608,0.2,140.71,140.69,11.76059976]
[1764874745079,0.2,140.71,140.7,12.44059976]
[1764874745586,0.2,140.71,140.7,19.5479203]
[1764874747379,0.2,140.72,140.71,8.80994492]
[1764874747580,0.2,140.72,140.71,20.30059976]
[1764874749068,0.2,140.72,140.71,27.40741519]
[1764874749680,0.2,140.72,140.71,43.71627919]
[1764874750072,1e-08,140.72,140.71,43.71627919]
[1764874750673,1e-08,140.72,140.71,27.40741519]
[1764874750877,1e-08,140.72,140.71,37.32450771]
[1764874752686,1e-08,140.72,140.71,29.46450771]
[1764874752876,1e-08,140.72,140.71,37.32450771]
[1764874755463,1e-08,140.72,140.71,26.51385287]
[1764874755669,1e-08,140.72,140.71,24.45676035]
[1764874755884,1e-08,140.72,140.71,27.40741519]
[1764874757376,1e-08,140.72,140.71,16.59676035]
[1764874757574,1e-08,140.72,140.71,40.76562435]
[1764874758270,1e-08,140.72,140.71,43.71627919]
[1764874758981,1e-08,140.72,140.71,27.40741519]
[1764874759176,1e-08,140.72,140.71,37.32450771]
[1764874759377,1e-08,140.72,140.71,25.83385287]
[1764874759575,1e-08,140.72,140.71,24.48676035]
[1764874759777,1e-08,140.72,140.71,40.79562435]
[1764874762601,1e-08,140.72,140.71,32.93562435]
[1764874762809,1e-08,140.72,140.71,40.79562435]
[1764874764796,1e-08,140.72,140.71,43.74627919]
[1764874771187,1e-08,140.72,140.71,40.79562435]
[1764874773718,1e-08,140.72,140.71,43.74627919]
[1764874774019,1e-08,140.72,140.71,50.71271687]
[1764874774193,1e-08,140.72,140.71,53.66337171]
[1764874774814,1e-08,140.72,140.71,50.71271687]
[1764874774989,1e-08,140.72,140.71,50.00271687]
[1764874775313,0.71000001,140.72,140.71,16.308864]
[1764874776304,3.66065485,140.72,140.7,7.10685382]
[1764874776617,5.30741036,140.72,140.7,14.96685382]
[1764874776984,1e-08,140.72,140.71,7.10681543]
[1764874777190,1e-08,140.72,140.71,7.81681543]
[1764874778512,1e-08,140.72,140.71,0.71]
[1764874778813,1e-08,140.72,140.71,14.11735527]
[1764874779211,1e-08,140.72,140.71,9.51994492]
[1764874781091,1e-08,140.72,140.71,14.11735527]
[1764874781691,1e-08,140.72,140.71,21.2241707]
[1764874781991,1e-08,140.72,140.71,31.14126322]
[1764874786915,1e-08,140.72,140.71,26.54385287]
[1764874787100,1e-08,140.72,140.71,39.00126322]
[1764874793029,1e-08,140.72,140.71,48.82313344]
[1764874794838,1e-08,140.72,140.71,51.66636477]
[1764874796835,1e-08,140.72,140.71,43.09568323]
[1764874797041,1e-08,140.72,140.71,50.95568323]
[1764874799530,1e-08,140.72,140.71,126.95568322]
[1764874800136,1e-08,140.72,140.71,127.66636476]
[1764874800638,0.2,140.75,140.74,25.11880892]
[1764874800816,0.2,140.75,140.74,47.49331179]
[1764874801016,0.2,140.75,140.74,48.15331179]
[1764874801644,0.2,140.77,140.76,13.40735527]
[1764874801837,0.2,140.77,140.76,21.26735527]
[1764874802030,0.2,140.77,140.76,21.92735527]
[1764874802639,0.2,140.77,140.76,24.43423591]
[1764874802845,0.2,140.79,140.78,25.11880892]
[1764874803033,0.2,140.79,140.78,21.26735527]
[1764874803229,0.2,140.79,140.78,21.92735527]
[1764874804022,0.2,140.81,140.8,29.71621927]
[1764874804252,0.2,140.81,140.8,37.57621927]
[1764874804424,0.68,140.85,140.81,8.80994492]
[1764874804625,0.68,140.85,140.84,16.308864]
[1764874805131,0.68,140.85,140.84,32.97880892]
[1764874805724,0.68,140.85,140.84,25.11880892]
[1764874806038,0.68,140.85,140.84,24.168864]
[1764874806641,0.68,140.85,140.82,4.59741035]
[1764874806822,0.68,140.85,140.84,7.86]
[1764874807916,5.27741035,140.85,140.79,4.59741035]
[1764874808140,0.68,140.85,140.74,9.91709252]
[1764874808328,4.59741035,140.82,140.77,4.59741035]
[1764874808544,0.68,140.81,140.78,7.86]
[1764874808753,0.68,140.81,140.78,12.45741035]
[1764874808927,0.68,140.81,140.78,28.76627435]
[1764874809120,0.68,140.81,140.79,13.40735527]
[1764874809427,0.68,140.83,140.81,25.11880892]
[1764874809632,0.68,140.83,140.81,37.57621927]
[1764874810441,0.68,140.83,140.81,24.168864]
[1764874810641,4.59741035,140.82,140.75,7.10469046]
[1764874810847,4.59741035,140.8,140.74,8.80994492]
[1764874811028,4.59741035,140.81,140.76,12.45741035]
[1764874811232,0.68,140.83,140.76,28.76627435]
[1764874811434,4.59741035,140.81,140.76,28.76627435]
[1764874811834,0.68,140.8,140.76,28.76627435]
[1764874812041,0.68,140.8,140.77,8.80994492]
[1764874812348,0.68,140.8,140.77,13.40735527]
[1764874812734,0.7,140.81,140.79,4.59741035]
[1764874812935,0.7,140.81,140.8,12.45741035]
[1764874813524,11.89675167,140.86,140.8,12.45741035]
[1764874813730,0.7,140.82,140.81,4.59741035]
[1764874813929,0.7,140.82,140.8,12.45741035]
[1764874814442,5.29741035,140.82,140.79,7.86]
[1764874814740,0.7,140.81,140.79,7.86]
[1764874814939,0.7,140.81,140.79,14.96247912]
[1764874816536,0.7,140.83,140.8,8.80994492]
[1764874816755,103.4,140.85,140.81,4.59741035]
[1764874816954,0.7,140.84,140.82,7.10126402]
[1764874817329,0.7,140.84,140.82,11.69867437]
[1764874818938,0.7,140.84,140.82,7.10126402]
[1764874821066,0.9,140.86,140.82,7.10126402]
[1764874821256,0.7,140.85,140.82,24.85442408]
[1764874823743,0.7,140.85,140.83,14.96045703]
[1764874824368,0.7,140.85,140.83,7.10045703]
[1764874824550,0.7,140.85,140.83,14.96045703]
[1764874825859,4.59741035,140.84,140.81,16.308864]
[1764874826066,4.59741035,140.83,140.81,16.308864]
[1764874826448,0.7,140.82,140.81,16.308864]
[1764874826648,4.59741035,140.85,140.81,32.22057726]
[1764874826859,0.7,140.85,140.82,17.37994492]
[1764874827152,0.9,140.86,140.83,4.59741035]
[1764874827352,0.9,140.86,140.82,21.97735527]
[1764874828155,0.9,140.86,140.84,4.59741035]
[1764874828360,0.9,140.86,140.84,7.86]
[1764874829168,0.7,140.85,140.83,32.71265923]
[1764874829872,0.7,140.85,140.83,14.96075978]
[1764874830260,12.39726668,140.85,140.82,24.168864]
[1764874830668,12.39726668,140.85,140.78,36.2239695]
[1764874830669,4.59741035,140.83,140.78,8.80994492]
[1764874830866,4.59741035,140.83,140.79,7.86]
[1764874831051,0.7,140.82,140.8,7.1022521]
[1764874831252,0.7,140.82,140.81,7.10176834]
[1764874834063,0.7,140.82,140.8,7.86]
[1764874834732,4.59741035,140.81,140.77,17.75887454]
[1764874834859,4.59741035,140.8,140.77,14.96337871]
[1764874835275,5.29741035,140.8,140.77,14.96337871]
[1764874835469,5.29741035,140.8,140.78,7.10320449]
[1764874835774,0.7,140.8,140.78,7.10320449]
[1764874837994,0.7,140.81,140.78,7.10320449]
[1764874838497,0.7,140.81,140.78,24.86140878]
[1764874841078,3.63784336,140.83,140.79,9.51994492]
[1764874841274,0.7,140.82,140.79,9.51994492]
[1764874841481,0.7,140.82,140.79,8.80994492]
[1764874842584,0.7,140.82,140.8,7.10227272]
[1764874842783,2.93784336,140.85,140.81,16.66994492]
[1764874842984,0.71,140.84,140.81,16.66994492]
[1764874843899,3.64784336,140.84,140.81,7.86]
[1764874844198,2.93784336,140.83,140.8,7.10196566]
[1764874844384,3.64784336,140.83,140.8,7.10196566]
[1764874844574,0.71,140.83,140.8,7.10196566]
[1764874846107,3.64784336,140.83,140.8,7.10196566]
[1764874846603,3.64784336,140.82,140.8,7.10196566]
[1764874847204,2.93784336,140.82,140.79,23.41141678]
[1764874847387,0.71,140.81,140.79,23.41141678]
[1764874847577,3.64784336,140.81,140.79,23.41141678]
[1764874847783,2.93784336,140.82,140.79,23.41141678]
[1764874847985,0.71,140.83,140.79,24.11141678]
[1764874848190,2.93784336,140.84,140.8,17.36994492]
[1764874848390,0.71,140.83,140.8,17.36994492]
[1764874848597,3.64784336,140.84,140.8,17.36994492]
[1764874849217,2.93784336,140.85,140.81,7.80176834]
[1764874849390,114.40784336,140.86,140.81,25.55618919]
[1764874849733,0.71,140.85,140.81,25.55618919]
[1764874850802,0.71,140.85,140.81,28.49403255]
[1764874851697,0.71,140.85,140.81,25.55618919]
[1764874852609,0.2,140.86,140.82,11.49784336]
[1764874852911,0.71,140.85,140.82,7.86]
[1764874853713,2.93784336,140.83,140.79,16.308864]
[1764874853886,2.93784336,140.82,140.78,8.80994492]
[1764874854095,2.93784336,140.82,140.78,25.11880892]
[1764874854299,0.71,140.81,140.79,7.10277718]
[1764874854994,2.93784336,140.82,140.79,7.10277718]
[1764874855194,3.64784336,140.82,140.79,7.10277718]
[1764874856035,0.71,140.82,140.79,7.10277718]
[1764874856195,7.10068811,140.84,140.79,10.04062054]
[1764874856511,10.74861536,140.83,140.79,14.96277718]
[1764874856815,2.93784336,140.82,140.79,14.96277718]
[1764874857115,2.93784336,140.81,140.78,23.41198965]
[1764874857416,3.64784336,140.81,140.78,16.308864]
[1764874857599,2.93784336,140.83,140.79,7.80268412]
[1764874857912,3.64784336,140.83,140.79,7.80268412]
[1764874858118,0.71,140.82,140.79,7.80268412]
[1764874858310,0.71,140.82,140.78,41.16948233]
[1764874858508,10.74926592,140.82,140.78,23.41214571]
[1764874858709,10.74926592,140.82,140.78,24.168864]
[1764874858710,2.93784336,140.81,140.78,24.168864]
[1764874858911,0.71,140.81,140.78,24.168864]
[1764874859718,0.71,140.81,140.78,31.27178827]
[1764874860622,0.71,140.81,140.78,23.41178827]
[1764874860916,2.93784336,140.79,140.74,7.10495645]
[1764874861118,102.7,140.8,140.74,7.10495645]
[1764874861119,2.93784336,140.77,140.74,7.10495645]
[1764874861502,0.71,140.76,140.74,7.10495645]
[1764874861698,0.71,140.76,140.73,7.10580544]
[1764874862407,0.71,140.76,140.73,7.80580544]
[1764874862608,2.93784336,140.77,140.73,25.57031904]
[1764874862809,0.71,140.76,140.73,25.57031904]
[1764874863117,2.93784336,140.75,140.72,7.10614039]
[1764874863318,7.81429758,140.76,140.7,14.96715572]
[1764874863319,2.93784336,140.74,140.7,14.96715572]
[1764874863519,2.93784336,140.73,140.68,7.86]
[1764874863711,11.50784336,140.75,140.7,8.80994492]
[1764874864101,11.50784336,140.75,140.7,11.74778828]
[1764874864303,7.86,140.75,140.71,3.63784336]
[1764874864617,3.64784336,140.76,140.71,11.49784336]
[1764874864810,0.71,140.76,140.71,11.49784336]
[1764874865015,2.93784336,140.74,140.71,7.10662851]
[1764874865216,2.93784336,140.73,140.7,7.10717468]
[1764874865612,3.64784336,140.72,140.69,7.10762953]